bitfinex/quotes_SOLUSD_20250714
["timestamp","ask_amount","ask_price","bid_price","bid_amount"]
[1752455229330,4.9588882,161.69,161.67,0.7]
[1752455230224,4.9588882,161.69,161.66,31.57]
[1752455230431,4.9588882,161.69,161.68,0.7]
[1752455230952,21.74357217,161.7,161.68,0.7]
[1752455231146,16.78468397,161.7,161.69,31.54]
[1752455231331,16.78468397,161.7,161.69,32.24]
[1752455232251,21.74357217,161.7,161.69,32.24]
[1752455233461,0.06,161.75,161.69,32.24]
[1752455233628,4.9588882,161.71,161.7,0.7]
[1752455236140,9.10505399,161.72,161.7,0.7]
[1752455236452,25.88973796,161.72,161.71,0.7]
[1752455237456,26.60973796,161.72,161.69,31.54]
[1752455237639,4.9588882,161.7,161.67,0.7]
[1752455237951,151.6588882,161.69,161.68,31.52]
[1752455238157,151.6588882,161.69,161.68,32.22]
[1752455238654,151.6588882,161.69,161.68,31.52]
[1752455238952,155.80994252,161.69,161.68,31.52]
[1752455239133,156.52994252,161.69,161.68,31.52]
[1752455240441,155.80994252,161.69,161.68,31.52]
[1752455241039,156.52994252,161.69,161.68,31.52]
[1752455242058,161.48883072,161.69,161.68,31.52]
[1752455242356,14.78883072,161.69,161.68,31.52]
[1752455243825,9.10994252,161.69,161.68,31.52]
[1752455244040,9.82994252,161.69,161.68,31.52]
[1752455244826,14.78883072,161.69,161.68,31.52]
[1752455245449,14.78883072,161.69,161.68,31.55]
[1752455246141,31.57351469,161.69,161.68,0.03]
[1752455246326,31.57351469,161.69,161.68,31.53]
[1752455247028,31.57351469,161.69,161.66,0.03]
[1752455247244,4.9588882,161.67,161.66,0.03]
[1752455247454,9.10994252,161.67,161.66,0.03]
[1752455247835,9.82994252,161.67,161.66,0.03]
[1752455248361,9.82994252,161.67,161.66,31.53]
[1752455250653,9.10994252,161.67,161.66,31.53]
[1752455251046,4.9588882,161.67,161.66,31.53]
[1752455251358,5.6188882,161.67,161.66,31.53]
[1752455252470,26.55462649,161.67,161.66,31.53]
[1752455252969,18.36448397,161.66,161.65,0.1]
[1752455253135,28.13442649,161.66,161.65,0.1]
[1752455254277,28.13442649,161.66,161.65,31.6]
[1752455256559,28.13442649,161.66,161.62,26.69]
[1752455256737,21.74357217,161.63,161.62,26.69]
[1752455256938,26.55462649,161.63,161.62,26.69]
[1752455257943,26.55462649,161.63,161.62,58.19]
[1752455261568,16.78468397,161.62,161.61,0.1]
[1752455261765,31.51351469,161.62,161.61,0.1]
[1752455261969,31.51351469,161.62,161.59,0.03]
[1752455262268,26.70246037,161.6,161.59,0.03]
[1752455262469,30.85351469,161.6,161.59,0.03]
[1752455262662,31.51351469,161.6,161.59,0.03]
[1752455262970,33.15171469,161.6,161.56,0.03]
[1752455263269,21.74357217,161.57,161.56,0.03]
[1752455263445,30.79997818,161.57,161.56,31.53]
[1752455263769,31.45997818,161.57,161.56,31.53]
[1752455264155,36.41886638,161.57,161.53,26.68]
[1752455264358,26.70246037,161.54,161.53,26.68]
[1752455264559,26.55462649,161.54,161.53,26.68]
[1752455265758,26.55462649,161.54,161.53,58.24]
[1752455266762,4.9588882,161.54,161.53,58.92]
[1752455268579,4.9588882,161.55,161.53,58.92]
[1752455268774,4.9588882,161.55,161.54,0.68]
[1752455270673,4.9588882,161.55,161.53,58.24]
[1752455270875,4.9588882,161.54,161.53,58.24]
[1752455271980,5.6188882,161.54,161.53,58.24]
[1752455273476,4.9588882,161.54,161.53,58.24]
[1752455273681,4.9588882,161.54,161.53,58.92]
[1752455274063,5.04204497,161.57,161.53,58.92]
[1752455274401,4.9588882,161.56,161.54,0.68]
[1752455274563,4.9588882,161.56,161.55,31.56]
[1752455274753,4.9588882,161.56,161.55,32.24]
[1752455276373,9.813884,161.57,161.55,32.24]
[1752455276582,4.9588882,161.58,161.56,0.68]
[1752455276881,4.9588882,161.58,161.57,31.56]
[1752455277091,4.9588882,161.58,161.57,32.24]
[1752455277385,4.93382998,161.61,161.57,32.24]
[1752455277570,4.9588882,161.6,161.58,0.68]
[1752455277878,4.9588882,161.6,161.59,32.24]
[1752455278784,4.9588882,161.62,161.59,32.24]
[1752455278996,146.7,161.61,161.6,0.68]
[1752455279296,146.7,161.61,161.6,32.24]
[1752455280401,146.7,161.61,161.6,37.1988882]
[1752455281778,4.9588882,161.67,161.61,6.5631]
[1752455281972,4.58258086,161.66,161.62,36.5188882]
[1752455282373,4.58258086,161.66,161.63,0.66]
[1752455282602,4.58258086,161.66,161.64,31.56]
[1752455282790,4.58258086,161.66,161.65,0.66]
[1752455283967,146.7,161.68,161.67,6.1791]
[1752455284271,0.2,161.77,161.67,48.2968764]
[1752455284272,146.7,161.76,161.67,48.2968764]
[1752455284482,151.6588882,161.76,161.71,4.9588882]
[1752455284670,151.6588882,161.76,161.71,36.5388882]
[1752455284873,151.6588882,161.76,161.71,37.1988882]
[1752455286567,146.7,161.76,161.71,37.1988882]
[1752455286784,151.6588882,161.76,161.71,37.1988882]
[1752455288098,146.7,161.76,161.71,37.1988882]
[1752455288289,151.6588882,161.76,161.71,37.1988882]
[1752455288697,151.6588882,161.76,161.71,32.24]
[1752455288869,151.6588882,161.76,161.71,37.1988882]
[1752455289068,146.7,161.76,161.71,63.8788882]
[1752455290878,146.7,161.76,161.71,58.92]
[1752455291171,146.7,161.76,161.71,63.8788882]
[1752455293576,151.6588882,161.76,161.71,58.92]
[1752455294289,4.9588882,161.73,161.71,58.92]
[1752455294495,5.0188882,161.75,161.71,58.92]
[1752455295287,0.06,161.75,161.71,63.8788882]
[1752455297224,0.06,161.75,161.71,58.92]
[1752455297400,0.06,161.75,161.71,63.8788882]
[1752455306708,0.78,161.75,161.71,58.92]
[1752455307009,0.06,161.75,161.71,58.92]
[1752455307213,0.06,161.75,161.71,63.8788882]
[1752455307387,0.06,161.75,161.71,58.92]
[1752455307582,0.06,161.75,161.71,63.8788882]
[1752455310812,5.7388882,161.75,161.71,58.82]
[1752455311586,4.9588882,161.74,161.71,58.16]
[1752455311906,0.73,161.72,161.71,58.16]
[1752455312597,0.06,161.72,161.71,58.16]
[1752455314896,0.06,161.72,161.71,58.85]
[1752455317496,0.06,161.72,161.71,58.16]
[1752455318317,0.73,161.72,161.71,58.16]
[1752455318817,5.6888882,161.72,161.71,58.16]
[1752455321601,9.80269893,161.72,161.71,58.16]
[1752455324130,26.5873829,161.72,161.71,58.16]
[1752455324501,26.5873829,161.72,161.65,26.66]
[1752455324736,4.9588882,161.67,161.65,26.66]
[1752455324896,4.9588882,161.67,161.65,27.35]
[1752455325406,4.9588882,161.66,161.65,26.66]
[1752455325605,9.10220311,161.66,161.65,26.66]
[1752455325806,9.77220311,161.66,161.65,58.14]
[1752455327409,26.55688708,161.66,161.65,58.14]
[1752455329409,4.81331491,161.66,161.65,58.14]
[1752455329610,9.10220311,161.66,161.65,58.14]
[1752455330327,9.77220311,161.66,161.65,58.14]
[1752455330498,4.14331491,161.66,161.65,58.14]
[1752455330701,4.9588882,161.66,161.65,58.14]
[1752455330906,4.14331491,161.66,161.65,58.83]
[1752455331123,4.14331491,161.68,161.65,63.7888882]
[1752455331320,4.14331491,161.7,161.66,5.6488882]
[1752455331542,4.14331491,161.7,161.67,32.17]
[1752455331718,4.14331491,161.7,161.68,0.69]
[1752455331919,4.14331491,161.7,161.69,31.48]
[1752455332118,155.80220311,161.71,161.69,31.48]
[1752455332422,4.14331491,161.7,161.69,31.48]
[1752455333122,9.10220311,161.7,161.69,31.48]
[1752455333439,4.9588882,161.7,161.69,31.48]
[1752455336020,151.6588882,161.71,161.69,32.17]
[1752455336743,151.6588882,161.71,161.69,31.48]
[1752455340349,5.6288882,161.7,161.69,31.48]
[1752455342423,4.9588882,161.7,161.69,31.48]
[1752455342749,146.7,161.71,161.69,32.19]
[1752455342926,151.6588882,161.71,161.69,32.19]
[1752455345136,146.7,161.71,161.69,31.48]
[1752455345424,146.7,161.71,161.7,0.71]
[1752455349556,146.7,161.71,161.7,5.6688882]
[1752455351845,0.06,161.72,161.7,5.6688882]
[1752455352037,0.06,161.72,161.71,32.13]
[1752455354435,5.0188882,161.72,161.71,31.42]
[1752455354965,0.06,161.72,161.71,31.42]
[1752455355458,0.06,161.72,161.71,32.13]
[1752455356757,5.0188882,161.72,161.71,31.42]
[1752455357348,0.06,161.72,161.71,31.42]
[1752455357546,5.0188882,161.72,161.71,31.42]
[1752455358641,0.06,161.72,161.71,32.13]
[1752455358840,0.06,161.72,161.71,31.42]
[1752455361040,0.06,161.72,161.71,32.13]
[1752455361757,0.77,161.72,161.71,31.42]
[1752455362062,0.06,161.72,161.71,31.42]
[1752455363346,0.06,161.72,161.71,32.13]
[1752455365038,0.06,161.72,161.71,31.42]
[1752455367445,5.7288882,161.72,161.71,31.42]
[1752455367658,5.7288882,161.72,161.7,26.66]
[1752455367865,0.06,161.72,161.71,31.42]
[1752455368449,0.77,161.72,161.71,31.42]
[1752455369063,5.7288882,161.72,161.71,31.42]
[1752455369265,5.0188882,161.72,161.71,31.42]
[1752455369973,0.06,161.72,161.71,31.42]
[1752455372588,0.06,161.72,161.71,32.14]
[1752455372877,0.06,161.72,161.71,31.42]
[1752455373049,5.7388882,161.72,161.71,31.42]
[1752455373648,9.88157095,161.72,161.71,31.42]
[1752455373848,0.78,161.72,161.71,31.42]
[1752455374046,5.7388882,161.72,161.71,31.42]
[1752455375464,4.20268275,161.72,161.71,31.42]
[1752455375676,0.06,161.72,161.71,31.42]
[1752455376272,0.06,161.72,161.71,32.14]
[1752455376886,0.06,161.72,161.71,31.42]
[1752455377570,5.0188882,161.72,161.71,31.42]
[1752455377774,9.17289677,161.72,161.71,31.42]
[1752455378082,9.89289677,161.72,161.71,31.42]
[1752455379881,1.6147,161.71,161.7,26.66]
[1752455380064,11.44759677,161.71,161.7,58.08]
[1752455380777,9.11289677,161.71,161.7,58.08]
[1752455381384,9.83289677,161.71,161.7,58.08]
[1752455386369,9.11289677,161.71,161.7,58.08]
[1752455386572,4.15400857,161.71,161.7,58.8]
[1752455386878,9.11289677,161.71,161.7,58.08]
[1752455389585,0.06,161.72,161.7,58.8]
[1752455389769,0.06,161.72,161.71,0.72]
[1752455395293,5.7388882,161.72,161.7,58.08]
[1752455395497,4.9588882,161.71,161.7,58.08]
[1752455396279,4.9588882,161.71,161.7,58.8]
[1752455396487,5.0188882,161.72,161.7,58.8]
[1752455398904,0.06,161.72,161.71,0.72]
[1752455400498,0.06,161.72,161.7,58.08]
[1752455400701,5.6788882,161.71,161.7,58.08]
[1752455401398,28.1855053,161.71,161.7,26.66]
[1752455401573,16.78468397,161.7,161.61,27.35]
[1752455401777,4.9588882,161.63,161.62,31.44]
[1752455402186,5.6188882,161.63,161.62,31.44]
[1752455402578,4.9588882,161.63,161.62,31.44]
[1752455402900,5.6188882,161.63,161.62,31.44]
[1752455405275,22.40357217,161.63,161.62,31.44]
[1752455405480,26.55809813,161.63,161.62,31.44]
[1752455407316,16.78468397,161.62,161.61,26.66]
[1752455407491,22.40357217,161.62,161.61,26.66]
[1752455408298,26.54597274,161.62,161.61,26.66]
[1752455408631,26.54597274,161.62,161.61,58.12]
[1752455410414,22.40357217,161.62,161.61,58.12]
[1752455411396,0.66,161.62,161.61,58.12]
[1752455411720,5.6188882,161.62,161.61,58.12]
[1752455413828,4.9588882,161.62,161.61,58.12]
[1752455414207,5.6188882,161.62,161.61,58.12]
[1752455414610,4.9588882,161.62,161.61,58.12]
[1752455414918,5.6188882,161.62,161.61,58.12]
[1752455415903,4.9588882,161.62,161.61,58.81]
[1752455416507,4.9588882,161.62,161.61,58.12]
[1752455416703,4.9588882,161.63,161.61,58.81]
[1752455416926,4.9588882,161.64,161.62,0.69]
[1752455417129,4.9588882,161.65,161.63,31.46]
[1752455417371,6.4510933,161.68,161.64,0.69]
[1752455417630,4.9588882,161.65,161.61,26.66]
[1752455417838,4.9588882,161.64,161.62,32.15]
[1752455418010,4.9588882,161.64,161.62,31.46]
[1752455418211,4.9588882,161.64,161.63,0.69]
[1752455419938,146.7,161.66,161.63,0.69]
[1752455420115,146.7,161.66,161.64,32.15]
[1752455420316,146.7,161.66,161.65,0.69]
[1752455425147,5.0188882,161.68,161.65,0.69]
[1752455425323,5.0188882,161.68,161.66,31.44]
[1752455425522,5.0188882,161.68,161.66,32.13]
[1752455427851,5.0188882,161.68,161.67,0.69]
[1752455430939,0.06,161.68,161.67,0.69]
[1752455431132,0.06,161.68,161.67,5.6488882]
[1752455431540,0.06,161.68,161.67,0.69]
[1752455431727,0.06,161.68,161.67,5.6488882]
[1752455435742,0.06,161.68,161.67,0.69]
[1752455436045,0.06,161.68,161.67,5.6488882]
[1752455437035,0.06,161.68,161.67,22.43357217]
[1752455437728,0.06,161.68,161.67,5.6488882]
[1752455440147,0.06,161.68,161.67,22.43357217]
[1752455440341,0.06,161.68,161.67,28.01100431]
[1752455440734,0.06,161.68,161.67,38.01100431]
[1752455444451,0.06,161.68,161.67,33.05211611]
[1752455445157,0.06,161.68,161.67,22.43357217]
[1752455449257,0.06,161.68,161.67,5.6488882]
[1752455454333,0.06,161.68,161.67,22.43357217]
[1752455454539,0.06,161.68,161.67,49.09357217]
[1752455459180,0.06,161.68,161.67,32.3088882]
[1752455459468,0.06,161.68,161.67,26.66]
[1752455459469,0.78,161.68,161.67,26.66]
[1752455460549,5.7388882,161.68,161.67,26.66]
[1752455460760,0.06,161.68,161.67,26.66]
[1752455460938,0.06,161.68,161.67,32.3188882]
[1752455461141,0.06,161.68,161.67,49.10357217]
[1752455462242,0.06,161.68,161.67,44.14468397]
[1752455462439,0.06,161.68,161.67,80.52357217]
[1752455466261,0.06,161.68,161.67,79.82357217]
[1752455466461,0.06,161.68,161.67,80.49357217]
[1752455470279,0.77,161.68,161.67,26.66]
[1752455470589,0.77,161.68,161.67,58.08]
[1752455471462,0.06,161.68,161.67,58.08]
[1752455472668,0.06,161.68,161.67,63.7088882]
[1752455474706,0.06,161.68,161.67,63.0388882]
[1752455476259,0.77,161.68,161.67,58.08]
[1752455476796,5.7288882,161.68,161.67,58.08]
[1752455477659,0.06,161.68,161.67,63.7088882]
[1752455480966,0.06,161.68,161.67,63.0388882]
[1752455481178,0.77,161.68,161.67,26.66]
[1752455481373,0.77,161.68,161.67,58.08]
[1752455482802,5.7288882,161.68,161.67,58.08]
[1752455484476,0.77,161.68,161.67,58.08]
[1752455486592,5.7288882,161.68,161.67,58.08]
[1752455486984,10.34536059,161.68,161.67,58.08]
[1752455488715,5.38647239,161.68,161.67,58.08]
[1752455488896,0.06,161.68,161.67,58.08]
[1752455489206,0.06,161.68,161.67,63.0388882]
[1752455489406,0.06,161.68,161.67,58.08]
[1752455490790,5.7288882,161.68,161.67,58.08]
[1752455491611,11.86924533,161.68,161.67,58.08]
[1752455492900,11.86828149,161.68,161.67,58.08]
[1752455495803,6.19705368,161.68,161.67,58.08]
[1752455495985,0.06,161.68,161.67,63.7388882]
[1752455496379,0.06,161.68,161.67,58.08]
[1752455497880,0.75,161.68,161.67,58.08]
[1752455498682,0.06,161.68,161.67,58.08]
[1752455501009,0.75,161.68,161.67,58.08]
[1752455501205,5.7088882,161.68,161.67,26.66]
[1752455501392,0.75,161.68,161.67,58.08]
[1752455503196,10.32335697,161.68,161.67,58.08]
[1752455503595,14.47743922,161.68,161.67,58.08]
[1752455503792,10.32335697,161.68,161.67,58.08]
[1752455504398,14.47743922,161.68,161.67,58.08]
[1752455504716,10.32335697,161.68,161.67,58.08]
[1752455505089,5.7088882,161.68,161.67,58.08]
[1752455505289,9.86297045,161.68,161.67,58.08]
[1752455505490,5.7088882,161.68,161.67,58.08]
[1752455505706,10.6677764,161.68,161.67,58.08]
[1752455505908,14.82185865,161.68,161.67,58.08]
[1752455506302,19.43592184,161.68,161.67,58.08]
[1752455506518,19.43492352,161.68,161.67,58.08]
[1752455506817,14.47603532,161.68,161.67,58.08]
[1752455507521,9.51714712,161.68,161.67,58.08]
[1752455507722,10.32195307,161.68,161.67,58.08]
[1752455508020,14.47603532,161.68,161.67,58.08]
[1752455508326,10.32195307,161.68,161.67,58.08]
[1752455508892,14.47603532,161.68,161.67,58.08]
[1752455509093,10.32195307,161.68,161.67,58.08]
[1752455509528,4.67306487,161.68,161.67,58.08]
[1752455509902,5.7088882,161.68,161.67,58.08]
[1752455510201,10.31941589,161.68,161.67,58.08]
[1752455510806,14.47349814,161.68,161.67,58.08]
[1752455510994,10.31941589,161.68,161.67,58.08]
[1752455512133,4.67052769,161.68,161.67,58.08]
[1752455512336,0.06,161.68,161.67,58.08]
[1752455513743,0.06,161.68,161.67,58.78]
[1752455515112,0.06,161.68,161.67,58.08]
[1752455515632,0.75,161.68,161.67,58.08]
[1752455515815,0.06,161.68,161.67,58.08]
[1752455520415,0.06,161.68,161.67,58.78]
[1752455523224,0.06,161.68,161.67,63.7388882]
[1752455526214,0.06,161.68,161.67,58.78]
[1752455526535,0.06,161.68,161.67,63.0388882]
[1752455526718,0.06,161.68,161.67,63.7288882]
[1752455527148,0.06,161.68,161.67,58.77]
[1752455527616,0.06,161.68,161.67,63.7288882]
[1752455527945,0.06,161.68,161.67,58.77]
[1752455528239,0.06,161.68,161.67,58.08]
[1752455528810,0.06,161.68,161.67,58.77]
[1752455530148,0.06,161.68,161.67,63.7288882]
[1752455530322,0.06,161.68,161.67,58.77]
[1752455530523,0.06,161.68,161.67,63.7288882]
[1752455534756,0.06,161.68,161.67,80.51357217]
[1752455535047,0.06,161.72,161.68,22.97308397]
[1752455535260,0.06,161.72,161.71,21.74357217]
[1752455535433,0.06,161.72,161.71,53.16357217]
[1752455535753,0.06,161.72,161.71,53.85357217]
[1752455537117,0.06,161.72,161.71,48.89468397]
[1752455537324,0.06,161.72,161.71,54.47196311]
[1752455538320,0.06,161.72,161.71,53.85357217]
[1752455543044,0.06,161.72,161.71,37.0688882]
[1752455548935,0.06,161.72,161.71,53.85357217]
[1752455552768,0.06,161.72,161.71,53.83357217]
[1752455552934,0.06,161.72,161.71,53.14357217]
[1752455553272,0.06,161.72,161.71,31.4]
[1752455553572,0.76,161.72,161.71,31.4]
[1752455555048,0.06,161.72,161.71,31.4]
[1752455556341,0.76,161.72,161.71,31.4]
[1752455557464,5.7188882,161.72,161.71,31.4]
[1752455559364,0.76,161.72,161.71,31.4]
[1752455559757,0.06,161.72,161.71,31.4]
[1752455559949,0.76,161.72,161.71,31.4]
[1752455561556,5.7188882,161.72,161.71,31.4]
[1752455561866,0.76,161.72,161.71,31.4]
[1752455562457,0.06,161.72,161.71,31.4]
[1752455565385,0.76,161.72,161.71,31.4]
[1752455566265,0.06,161.72,161.71,31.4]
[1752455566978,0.76,161.72,161.71,31.4]
[1752455567558,5.7188882,161.72,161.71,31.4]
[1752455574173,10.32481093,161.72,161.71,31.4]
[1752455574479,1.5725,161.7,161.68,0.03]
[1752455574787,14.52369913,161.69,161.68,0.03]
[1752455575004,19.36957365,161.69,161.68,31.43]
[1752455575486,19.36869432,161.69,161.68,31.43]
[1752455575786,14.40980612,161.69,161.68,31.43]
[1752455575986,10.2639316,161.69,161.68,31.43]
[1752455576371,5.3050434,161.69,161.68,31.43]
[1752455576573,10.2639316,161.69,161.68,31.43]
[1752455577588,10.2595017,161.69,161.68,31.43]
[1752455580190,5.6588882,161.69,161.68,31.43]
[1752455583195,10.6177764,161.69,161.68,31.43]
[1752455583358,15.21217035,161.69,161.68,31.43]
[1752455583563,15.21217035,161.69,161.68,0.03]
[1752455583564,31.99685432,161.69,161.68,0.03]
[1752455583775,36.13188355,161.69,161.68,31.43]
[1752455584269,16.78468397,161.68,161.61,0.03]
[1752455584477,4.9588882,161.62,161.61,0.03]
[1752455585194,5.6488882,161.62,161.61,0.03]
[1752455585369,5.6488882,161.62,161.61,31.43]
[1752455589889,146.7,161.64,161.61,32.12]
[1752455590066,151.6588882,161.64,161.61,32.12]
[1752455590269,4.9588882,161.63,161.61,31.43]
[1752455591590,146.7,161.64,161.62,0.69]
[1752455591784,146.7,161.64,161.63,32.09]
[1752455591988,146.7,161.64,161.63,31.4]
[1752455593289,146.7,161.64,161.63,32.09]
[1752455594069,146.7,161.64,161.63,31.4]
[1752455596793,146.7,161.64,161.63,31.43]
[1752455599302,146.7,161.64,161.63,37.0788882]
[1752455600101,146.7,161.64,161.63,32.12]
[1752455600697,146.7,161.64,161.63,37.0788882]
[1752455602710,146.7,161.64,161.63,32.12]
[1752455603000,146.7,161.64,161.63,37.0788882]
[1752455603300,5.6488882,161.68,161.63,37.0788882]
[1752455603487,5.6488882,161.68,161.64,0.69]
[1752455603682,5.6488882,161.68,161.65,31.4]
[1752455604683,0.69,161.67,161.65,31.4]
[1752455604885,5.6488882,161.68,161.65,31.4]
[1752455605103,5.6488882,161.68,161.65,32.09]
[1752455605512,4.9588882,161.68,161.65,32.09]
[1752455607406,5.6488882,161.68,161.65,32.09]
[1752455612488,5.6488882,161.68,161.65,58.77]
[1752455613313,4.9588882,161.66,161.65,26.68]
[1752455613488,5.6688882,161.66,161.65,58.08]
[1752455614312,10.27702379,161.66,161.65,58.08]
[1752455615312,14.42429494,161.66,161.65,58.08]
[1752455616996,10.27702379,161.66,161.65,58.08]
[1752455617195,14.42783591,161.66,161.65,58.08]
[1752455618021,14.43178981,161.66,161.65,58.08]
[1752455618531,14.43373749,161.66,161.65,58.08]
[1752455619315,13.72373749,161.66,161.65,58.08]
[1752455619723,8.76484929,161.66,161.65,58.78]
[1752455620097,8.76484929,161.66,161.65,58.81]
[1752455620507,8.76484929,161.66,161.65,58.11]
[1752455620817,4.61403717,161.66,161.65,58.11]
[1752455621191,4.61403717,161.66,161.65,58.81]
[1752455621391,146.7,161.67,161.65,58.81]
[1752455622618,4.61537302,161.66,161.65,58.81]
[1752455623221,4.61537302,161.66,161.65,58.11]
[1752455624314,5.32537302,161.66,161.65,58.11]
[1752455624812,4.61537302,161.66,161.65,58.11]
[1752455626625,4.61587269,161.66,161.65,58.11]
[1752455627128,8.7707128,161.66,161.65,58.11]
[1752455627616,4.61587269,161.66,161.65,58.11]
[1752455628406,4.61587269,161.66,161.65,58.81]
[1752455629108,146.7,161.67,161.65,58.81]
[1752455630612,147.41,161.67,161.65,58.11]
[1752455630808,4.6166387,161.66,161.65,58.11]
[1752455634828,8.77553192,161.66,161.65,58.11]
[1752455635225,8.78017102,161.66,161.65,58.11]
[1752455635712,14.44905922,161.66,161.65,58.11]
[1752455642562,13.73905922,161.66,161.65,58.11]
[1752455642719,9.78778142,161.66,161.65,58.11]
[1752455642923,14.41152661,161.66,161.65,58.11]
[1752455643531,13.74152661,161.66,161.65,58.11]
[1752455644436,14.41152661,161.66,161.65,58.11]
[1752455646125,14.41152661,161.66,161.65,31.43]
[1752455646336,13.74152661,161.66,161.65,31.43]
[1752455646927,8.78263841,161.66,161.65,32.15]
[1752455648648,8.78159871,161.66,161.65,32.15]
[1752455648831,4.62270549,161.66,161.65,32.15]
[1752455649140,4.62270549,161.66,161.65,37.1088882]
[1752455649344,0.06,161.68,161.65,37.1088882]
[1752455649642,0.06,161.72,161.68,16.78468397]
[1752455649842,0.06,161.72,161.71,4.9588882]
[1752455650085,0.06,161.72,161.71,36.3388882]
[1752455650233,0.06,161.72,161.71,37.0588882]
[1752455654535,0.06,161.72,161.71,31.38]
[1752455654738,0.06,161.72,161.69,11.5189882]
[1752455654739,0.73,161.72,161.69,0.72]
[1752455654949,5.6888882,161.72,161.7,31.38]
[1752455655627,4.9588882,161.71,161.7,31.38]
[1752455655855,0.73,161.72,161.7,31.38]
[1752455655856,5.0188882,161.72,161.7,31.38]
[1752455656058,5.0188882,161.72,161.7,32.1]
[1752455657054,4.9588882,161.71,161.7,31.38]
[1752455657256,5.6288882,161.71,161.7,31.38]
[1752455660153,4.9588882,161.71,161.7,31.38]
[1752455664667,5.0188882,161.71,161.7,31.38]
[1752455664971,5.6888882,161.71,161.7,31.38]
[1752455668073,5.0188882,161.71,161.7,31.38]
[1752455668569,5.6888882,161.71,161.7,31.38]
[1752455669174,0.06,161.71,161.7,31.38]
[1752455669358,0.06,161.71,161.7,32.1]
[1752455670276,0.06,161.71,161.7,37.0588882]
[1752455673188,0.06,161.71,161.7,32.1]
[1752455677385,5.6788882,161.71,161.7,31.38]
[1752455677689,5.0188882,161.71,161.7,31.38]
[1752455677868,0.06,161.71,161.7,31.38]
[1752455679760,0.06,161.71,161.69,26.66]
[1752455679761,5.6788882,161.71,161.69,26.66]
[1752455679961,5.6188882,161.7,161.69,26.66]
[1752455680161,5.6188882,161.7,161.69,58.02]
[1752455683166,10.5777764,161.7,161.69,58.02]
[1752455683488,16.78468397,161.69,161.68,0.03]
[1752455683689,31.50023111,161.69,161.68,0.03]
[1752455684079,26.54134291,161.69,161.68,0.03]
[1752455684283,22.40357217,161.69,161.68,0.03]
[1752455684583,26.54471376,161.69,161.68,31.39]
[1752455684779,22.40357217,161.69,161.68,31.39]
[1752455685572,5.6188882,161.69,161.68,31.39]
[1752455686101,5.0188882,161.71,161.68,32.1]
[1752455686390,5.0188882,161.71,161.69,0.71]
[1752455686579,5.0188882,161.71,161.7,31.36]
[1752455687872,0.06,161.71,161.7,32.07]
[1752455695876,0.06,161.71,161.7,31.36]
[1752455696980,0.06,161.71,161.7,58.02]
[1752455698796,5.0188882,161.71,161.7,58.02]
[1752455698976,5.6788882,161.71,161.7,58.02]
[1752455699684,5.0188882,161.71,161.7,58.02]
[1752455700395,0.06,161.71,161.7,63.6888882]
[1752455700773,0.06,161.71,161.7,58.73]